Cogmind - Beta 15 @@@ ROGUE MODE // 2025.08.01 @ 23:26:14 Player: Anting Result: Destroyed by OG-3AG(R) with Subdweller Machine Gun Performance ------------- Evolutions (0) 0 Regions Visited (2) 400 Robots Destroyed (24) 120 Value Destroyed (591) 591 Prototype IDs (13) 260 Alien Tech Used (0) 0 Bonus (0) 0 TOTAL SCORE: 1371 Bonus ------- None Cogmind --------- Core Integrity 0/250 Matter 210/300 Energy 154/160 System Corruption 0% Temperature Cool (49) Movement Treading (160) Location -10/Subcaves Parts ------- > --- POWER (1) -------- Light Nuclear Core > --- PROPULSION (2) --- Light Treads Spiked Treads > --- UTILITY (2) ------ Medium Storage Unit Makeshift Light Armor Plating > --- WEAPON (2) ------- Subdweller Beam Cannon Subdweller Shrapnel Launcher > --- INVENTORY (10) --- Light Treads Makeshift Thermal Plating Scrap Shield Makeshift Hacking Suite EM Pulse Gun Subdweller Beam Cannon Subdweller Machine Gun Subdweller Machine Gun Makeshift Axe Peak State ------------ > --- POWER ------------ Light Nuclear Core > --- PROPULSION ------- Light Treads Spiked Treads > --- UTILITY ---------- Medium Storage Unit Makeshift Light Armor Plating > --- WEAPON ----------- Heavy Assault Rifle Makeshift Axe > --- INVENTORY -------- Light Treads Light Treads Makeshift Leg Power Bank EM Pulse Gun Subdweller Beam Cannon Powered Cannon Battle Rifle Subdweller Shrapnel Launcher [Rating: 20] Favorites ----------- Power Light Nuclear Core Engine Light Ion Engine Power Core Light Nuclear Core Propulsion Light Treads Treads Light Treads Leg Aluminum Leg Utility Medium Storage Unit Device Seismic Detector Storage Medium Storage Unit Protection Makeshift Light Armor Plating Weapon Assault Rifle Energy Gun EM Pulse Gun Energy Cannon Subdweller Beam Cannon Ballistic Gun Assault Rifle Launcher Subdweller Shrapnel Launcher Slashing Weapon Makeshift Axe Build | -11 -10 -10 ------- Run | Yrd Mat Sub Slots Evolved . | . . . Power . | . . . Propulsion . | . . . Utility . | . . . Weapon . | . . . Parts Attached 26 | 7 1 18 Power 3 | 1 . 2 Engine 2 | 1 . 1 Core 1 | . . 1 Reactor . | . . . Propulsion 6 | 2 . 4 Treads 4 | . . 4 Leg 2 | 2 . . Wheel . | . . . Hover . | . . . Flight . | . . . Utility 5 | 2 1 2 Device 2 | 1 . 1 Storage 2 | 1 1 . Processor . | . . . Hackware . | . . . Protection 1 | . . 1 Artifact . | . . . Weapon 12 | 2 . 10 Energy Gun 1 | . . 1 Energy Cannon 4 | . . 4 Ballistic Gun 5 | 2 . 3 Ballistic Cannon . | . . . Launcher 1 | . . 1 Special Weapon . | . . . Impact Weapon . | . . . Slashing Weapon 1 | . . 1 Piercing Weapon . | . . . Special Melee Weapon . | . . . Unidentified Prototypes . | . . . Parts Lost 6 | . . 6 Power 2 | . . 2 Propulsion 2 | . . 2 Utility 1 | . . 1 Weapon 1 | . . 1 Highest Loss Streak 4 | . . 4 To Critical Strikes . | . . . Average Backups 7 | 4 5 8 Power . | . 1 . Propulsion 3 | 2 3 3 Utility . | . . . Weapon 3 | . 1 3 Tool/Special . | . . . Unused Backups 12 | . . 12 Power . | . . . Propulsion 5 | . . 5 Utility 4 | . . 4 Weapon 3 | . . 3 Tool/Special . | . . . Average Slot Usage (%) 96 | . 100 96 Engine 2 | . 14 1 Core 10 | . . 11 Treads 25 | . . 27 Leg 1 | . 28 . Device 2 | . 14 1 Storage 14 | . 14 14 Protection 9 | . . 10 Energy Gun 1 | . . 1 Energy Cannon 3 | . . 3 Ballistic Gun 16 | . 28 15 Slashing Weapon 6 | . . 7 Peak Build Rating 20 | 7 7 20 Average Rating 14 | 4 7 15 On Entrance 4 | . 7 7 Naked Turns . | . . . Heaviest Build 35 | 13 18 35 Greatest Support 40 | 20 20 40 Greatest Overweight (x) 3 | 3 . 1 Average Overweight (x) . | . . . Largest Inventory Capacity 10 | 8 10 10 Average Capacity 9 | 7 8 10 Most Carried 10 | 5 6 10 Average Carried 8 | 4 5 9 Final Capacity 10 | 8 10 10 Final Carried 10 | 5 6 10 Class Distribution -------------------- 66% | Mutant 33% | Scavenger-Mutant Dominant Class ---------------- Mutant | -10/Materials Mutant | -10/Subcaves Resources | -11 -10 -10 ----------- Run | Yrd Mat Sub Matter Collected 926 | 267 140 519 Remotely . | . . . Salvage Created 866 | 16 201 649 Parts 56 | 2 18 36 Haulers Intercepted 2 | . 2 . Recyclers Shooed 1 | . 1 . Parts Field Recycled . | . . . Retrieved Matter . | . . . Parts Self-Destructed 8 | . . 8 Prevented . | . . . Kills | -11 -10 -10 ------- Run | Yrd Mat Sub Combat Hostiles Destroyed 16 | . . 16 Melee 3 | . . 3 Guns 6 | . . 6 Cannons 2 | . . 2 AOE 4 | . . 4 Classes Destroyed 10 | 1 4 5 Worker 1 | . 1 . Builder 1 | . 1 . Tunneler 1 | 1 . . Hauler 2 | . 2 . Watcher 3 | . 3 . Swarmer 4 | . . 4 Grunt 2 | . . 2 Sentry 1 | . . 1 Cobbler 1 | . . 1 Subdweller 9 | . . 9 Best Kill Streak 4 | 1 2 4 Combat Bots Only 4 | . . 4 Max Kills in Single Turn 3 | 1 1 3 Gunslinging . | . . . Exploded 3 | . . 3 Melee 1 | . . 1 Uniques/NPCs Destroyed . | . . . Combat | -11 -10 -10 -------- Run | Yrd Mat Sub Hostile Shots Fired 94 | . . 94 Missed 27 | . . 27 Hits 67 | . . 67 Projectile 67 | . . 67 AOE 3 | . . 3 Critical Strikes 3 | . . 3 Damage Taken 1482 | . . 1482 Core 254 | . . 254 Absorbed by Shields . | . . . Core Remaining (%) 100 | 100 . . Volleys Fired 84 | 2 20 62 Largest 2 | 2 2 2 Hottest 160 | 40 40 160 Shots Fired 142 | 4 40 98 Gun 101 | 4 40 57 Cannon 36 | . . 36 Launcher 5 | . . 5 Special . | . . . Kinetic 103 | 4 40 59 Thermal 36 | . . 36 Explosive . | . . . Electromagnetic 3 | . . 3 Robot Hit Streak 34 | 3 5 34 Robot Miss Streak 5 | 1 5 2 Penetration Max . | . . . Secondary Targets 1 | . . 1 Max Gunslinging Chain 1 | . . 1 Shots Hit Robots 100 | 3 21 76 Core Hits 40 | 1 11 28 Critical Kills 1 | . . 1 Critical Parts Destroyed . | . . . Critical Strikes 3 | . . 3 Meltdown 1 | . . 1 Sever 2 | . . 2 Melee Attacks 129 | . . 129 Impact . | . . . Slashing 129 | . . 129 Piercing . | . . . Sneak Attacks 2 | . . 2 Combat Hostiles 1 | . . 1 Follow-up Attacks . | . . . Damage Inflicted 2311 | 39 309 1963 Guns 959 | 39 297 623 Cannons 398 | . . 398 Explosions 381 | . . 381 Melee 561 | . . 561 Ramming 12 | . 12 . Kinetic 1306 | 39 297 970 Thermal 398 | . . 398 Explosive . | . . . Electromagnetic 34 | . . 34 Impact . | . . . Slashing 561 | . . 561 Piercing . | . . . Highest Corruption . | . . . Average Corruption . | . . . Corruption Purged . | . . . Corruption Blocked . | . . . Overload Shots . | . . . Overflow Damage 17 | . . 17 Projectiles . | . . . Explosions 17 | . . 17 Melee . | . . . Knockbacks . | . . . Impact . | . . . Kinetic . | . . . Secondary . | . . . Self-Inflicted Damage 39 | . . 39 Shots 2 | . . 2 Rammed . | . . . Targets Rammed 1 | . 1 . Kicked 1 | . 1 . Crushed . | . . . Highest Temperature 398 | . . 398 Average Temperature 123 | . . 123 Received Heat Transfer 859 | . . 859 Effects 3 | . . 3 Interference 1 | . . 1 Matter Decay 1 | . . 1 Short Circuit 1 | . . 1 Siege Activations . | . . . Martial Activations . | . . . Shielding Activations . | . . . Robots Disrupted . | . . . Combat Hostiles . | . . . Robots Corrupted . | . . . Combat Hostiles . | . . . Parts Fried . | . . . Impact Corruptions . | . . . Robots Melted 1 | . . 1 Combat Hostiles 1 | . . 1 Parts Melted 1 | . . 1 Heat Transferred 518 | . . 518 Parts Sabotaged . | . . . Parts Stolen . | . . . Parts Stripped . | . . . Power Chain Reactions . | . . . Alert | -11 -10 -10 ------- Run | Yrd Mat Sub Maximum Alert Level . | . . . Low Security (%) 100 | 100 100 . Level 1 . | . . . Level 2 . | . . . Level 3 . | . . . Level 4 . | . . . Level 5 . | . . . High Security . | . . . Max Security . | . . . Peak Influence 27 | 5 27 . Initial . | . . . Average 6 | . 7 . Influence Increases 333 | 5 103 225 Destroy 0b10 Robot/C 140 | . . 140 Destroy 0b10 Robot/NC 40 | 5 35 . Destroy Leader 20 | . 10 10 Successful Hack 28 | . 28 . Lose Combat Pursuer 105 | . 30 75 Influence Decreases 253 | 5 79 169 Entered New Map 12 | . . 12 Time Decay 231 | 5 79 147 Lost Part 10 | . . 10 Squads Dispatched . | . . . Investigation . | . . . Extermination . | . . . Reinforcement . | . . . Assault . | . . . Garrison . | . . . Intercept . | . . . Searches Triggered . | . . . Construction Impeded . | . . . Haulers Reinforced . | . . . Active Scanning Responses . | . . . Cargo Convoy Interrupts . | . . . Stealth | -11 -10 -10 --------- Run | Yrd Mat Sub Distress Signals 1 | . 1 . Communications Jammed . | . . . Distress Signals . | . . . Times Spotted 25 | . 4 21 Peak Tracking Total 6 | . 4 6 Tactical Retreats 3 | . 1 2 Traps | -11 -10 -10 ------- Run | Yrd Mat Sub Traps Triggered . | . . . Indirectly . | . . . Trap Hack Attempts . | . . . Triggered . | . . . Disarmed . | . . . Reprogrammed . | . . . Reused . | . . . Traps Extracted . | . . . Installed . | . . . Triggered . | . . . Machines | -11 -10 -10 ---------- Run | Yrd Mat Sub Machines Disabled 1 | . . 1 Max in Single Turn 1 | . . 1 Machines Repaired . | . . . Machines Dismantled . | . . . Machines Sabotaged . | . . . Overloaded Fab Kills . | . . . Hacking | -11 -10 -10 --------- Run | Yrd Mat Sub Machines Accessed 4 | . 3 1 Terminals 3 | . 3 . Fabricators . | . . . Repair Stations . | . . . Recycling Units . | . . . Scanalyzers . | . . . Garrison Access . | . . . Total Hacks 13 | . 11 2 Successful 6 | . 4 2 Failed 7 | . 7 . Catastrophic 1 | . 1 . Database Lockouts . | . . . Manual 7 | . 7 . Terminals 11 | . 11 . Fabricators . | . . . Repair Stations . | . . . Recycling Units . | . . . Scanalyzers . | . . . Garrison Access . | . . . Terminal Hacks 3 | . 1 2 Record 1 | . . 1 Prototype ID Bank 1 | . 1 . Proto ID Catalog 1 | . . 1 Fabricator Hacks . | . . . Repair Station Hacks . | . . . Recycling Unit Hacks . | . . . Scanalyzer . | . . . Garrison Access Hacks . | . . . Unauthorized Hacks 3 | . 3 . Terminals 3 | . 3 . Botnet 1 | . 1 . Skim 2 | . 2 . Fabricators . | . . . Repair Stations . | . . . Recycling Units . | . . . Scanalyzers . | . . . Garrison Access . | . . . Data Cores Recovered . | . . . Used . | . . . Hacking Detections 3 | . 3 . Full Trace Events . | . . . Feedback Events . | . . . Feedback Blocked . | . . . Robot Schematics Acquired . | . . . Robots Built . | . . . Authchips . | . . . Time . | . . . Total Robot Build Rating . | . . . Part Schematics Acquired . | . . . Parts Built . | . . . Authchips . | . . . Time . | . . . Total Part Build Rating . | . . . Parts Repaired . | . . . Time . | . . . Parts Recycled . | . . . Recycled Matter . | . . . Retrieved Matter . | . . . Retrieved Components . | . . . Parts Scanalyzed . | . . . Part Schematics Acquired . | . . . Parts Damaged . | . . . Bothacking | -11 -10 -10 ------------ Run | Yrd Mat Sub Used RIF Installer . | . . . Robots Hacked . | . . . Non-combat . | . . . Combat . | . . . Robot Hacks Applied . | . . . Relay Couplers Released . | . . . Fabnet Peak Effective % . | . . . Robots Rewired . | . . . Allies Hacked . | . . . Hacks Repelled . | . . . Allies | -11 -10 -10 -------- Run | Yrd Mat Sub Total Allies . | . . . Largest Group . | . . . Highest-Rated Group . | . . . Highest-Rated Ally . | . . . Total Orders . | . . . Ally Attacks . | . . . Total Damage . | . . . Kills . | . . . Allies Corrupted . | . . . Allies Melted . | . . . Intel | -11 -10 -10 ------- Run | Yrd Mat Sub Active Infowar (turns) 525 | 25 234 266 Seismic 525 | 25 234 266 Robot Analysis Total . | . . . Derelict Logs Recovered 2 | . . 2 Drone Launches . | . . . Drone Recoveries . | . . . Exploration | -11 -10 -10 ------------- Run | Yrd Mat Sub Turns Passed 3509 | 82 234 3193 Spaces Moved 1782 | 49 138 1595 Core 20 | 20 . . Treads 1595 | . . 1595 Legs 167 | 29 138 . Wheels . | . . . Hover . | . . . Flight . | . . . Fastest Speed 50 | 50 120 160 Average Speed 156 | 125 120 160 Slowest Speed 260 | 200 120 260 Overloaded Moves . | . . . Propulsion Burnouts . | . . . Robots Hopped . | . . . Potential Cave-ins . | . . . Cave-ins Triggered . | . . . Exploration Rate (%) 38 | 6 31 79 Regions Visited 2 Branch Regions 1 Pre-discovered Areas 1 | . . 1 Known Exits Taken . | . . . Unknown Exits Taken 2 | 1 1 . Scrap Searched 9 | . . 9 Spaces Dug 101 | . . 101 Terrain Destroyed 142 | . . 142 Melee 65 | . . 65 Projectile 10 | . . 10 AOE 67 | . . 67 Terrain Rammed . | . . . Walls Destroyed . | . . . Machines Disabled . | . . . Actions | -11 -10 -10 --------- Run | Yrd Mat Sub Total 2235 | 62 166 2007 Wait 158 | . 5 153 Move 1780 | 48 137 1595 Hop . | . . . Pick Up 24 | 5 1 18 Fast Attach 12 | 7 . 5 Attach 8 | . . 8 Detach 2 | . . 2 Swap 20 | . 1 19 Drop 17 | . 1 16 Fire 84 | 2 20 62 Melee 129 | . . 129 Ram . | . . . Kick 1 | . 1 . Crush . | . . . Escape Stasis . | . . . Rewire . | . . . Trap . | . . . Miscellaneous . | . . . Route ------- -11/Scrapyard -10/Materials (discovered 2 exits: [*Min] / *Sub) -10/Subcaves (discovered 2 exits: [*Mat x2]) History --------- Turn | Location | Event 4 | -11/Scrapyard | Discovered new exit (range 15) 83 | -11/Scrapyard | Entered Materials 128 | -10/Materials | Discovered new exit (range 12) 294 | -10/Materials | Discovered new exit (range 9) 301 | -10/Materials | Build established: Mutant 317 | -10/Materials | Entered Subcaves 381 | -10/Subcaves | Learned Materials emergency access door positions 630 | -10/Subcaves | Lost 4 parts (2p1u1w) 699 | -10/Subcaves | Visited 4L-MR0's lab 715 | -10/Subcaves | Found Powered Cannon 825 | -10/Subcaves | Discovered new exit (range 16) 829 | -10/Subcaves | Learned location of Zion (-7) 829 | -10/Subcaves | Met a Zionite searching for "candidates" 965 | -10/Subcaves | Core integrity fell below 50% 1089 | -10/Subcaves | Discovered new exit (range 8) 1546 | -10/Subcaves | A swath of the cavern ceiling suddenly collapsed 1752 | -10/Subcaves | Shifting Twisted Machinery released Sub. Shrapnel Launcher 2079 | -10/Subcaves | Shifting Twisted Machinery released Sub. Laser 2310 | -10/Subcaves | Shifting Twisted Machinery released Spk. Treads 2463 | -10/Subcaves | A Subdweller sparked back to life 2521 | -10/Subcaves | Found Power Bank 2725 | -10/Subcaves | Shifting Twisted Machinery released Riot Gun 2976 | -10/Subcaves | Learned Materials machine intel 3035 | -10/Subcaves | Disturbed a concealed Subdweller 3065 | -10/Subcaves | Build established: Scavenger-Mutant 3468 | -10/Subcaves | Ambushed by Subdweller buried in earth 3503 | -10/Subcaves | Ambushed by Subdweller buried in earth 3503 | -10/Subcaves | Ambushed by Subdweller buried in earth 3505 | -10/Subcaves | Core integrity fell below 20% 3510 | -10/Subcaves | Destroyed by OG-3AG(R) with Subdweller Machine Gun Last Messages --------------- 03213_ Searching scrap... 03213_ Found Mak. Thermal Plating. 03213_ Found 33 Matter. 03221_ Searching scrap... 03221_ Found Sub. Optics. 03221_ Found 59 Matter. 03225_ Acquired Mak. Thermal Plating. 03230_ Dropped Mak. Leg. 03230_ Dropped Battle Rifle. 03231_ Acquired Scrap Shield. 03469_ KU-24Y(R): "ARGHSUB!" 03471_ Critical hit (Meltdown: +250). 03471_ Sub. Monowheel melted. 03471_ KU-24Y(R) destroyed. 03476_ Sub. Beam Cannon broken. 03476_ Overheating: Short circuit. 03484_ Dropped Broken Sub. Beam Cannon. 03487_ Acquired Sub. Beam Cannon. 03504_ NZ-K9E(R): "GOODGOOD!" 03504_ OG-3AG(R): "ARGHSUB!" Map ----- +----------------------------------------------------+ | ?????????????????????????????????????????????# | | ?????????????????????????????????????????????# | | ???????????????????????????????????????????### | | ???????????????????????????????????????????# | | ?????????????????????????????????????????### | | ?????????????????????????????????????????# | | ?????????????????????????????????????????# % | | ?????????????????????????????????????????# # | | ?????????????????????????????????????????# ## | | ?????????????????????????????????????????####### | | ???????????????????????????????????????????????### | | ?????????????????????????????????????????????????? | | ?????????????????????????????????????????????????? | | ?????????????????????????????????????????????????? | | ?????????????????????????????????????????????????? | | ?????????????????????????????????????????????????? | | ?????????????????????????????????????????????????? | | ?????????????????????????????????????????????????? | | ?????????????????????####????????????????????????? | | ????????????????###### # ?###????????????????????? | | ???????????????##; # ###??????????????????? | | ??????????????##; #??????????????????? | | ??????????????# #??????????????????? | | ??????????????## R #??????????????????? | | ??????????????# % #??????????????????? | | ??????????????# *R] @ #??????????????????? | | ???????????????# ##?????????????????? | | ???????????????# ##????????????????? | | ???????????????#; ; ##???????????????? | | ??????????????## ; #???????????????? | | ?????????????## # #??????????????? | | ?????????????# # #??????????????? | | ?????????????# ## ##??????????????? | | ?????????????#;#### ## #???????????????? | | ?????????????##?##;; #???????????????? | | ??????????????###;; #???????????????? | | ??????????????# ;; ## #?????????????? | | ?????????????## ;# ##? ??????????????? | | ?????????????# ## ##??# ??????????????? | | ?????????????#" # #????# ???????????????? | | ?????????????#" ## ##????# ?????????????????? | | ?????????????# #### #####?# ?????????????????? | | ?????????????### #### ##?#???????????????????? | | ??????????????# # ## #?????????????????????? | | ????????????#### ### ### ## ###?????????????????? | | ???????????## # ### ## # #???????????????? | | ???????????# ### #???????????? | | ???????????#" #???????????? | | ???????????#"# #?????????????? | | ???????????### ## #####?????????????? | +----------------------------------------------------+ Best States ------------- Heat Dissipation 35 Energy Generation 14 Energy Capacity 160 Matter Stores 300 Matter Capacity 300 Sight Range 16 Terrain Scan Density 10 Armor Coverage 100 Evasion (%) 55 Recoil Reduction 2 Item Schematics ----------------- None Robot Schematics ------------------ None Fabricated ------------ Nothing Repaired ---------- Nothing Alien Tech Used ----------------- None Achievements -------------- None Challenges ------------ None Game ------ Seed TrackerConcussiveCharge Manual? 0 Play Time 00:19:11 Cumulative 275.1 hours Start 2025.08.01 @ 23:05:33 End 2025.08.01 @ 23:26:14 Sessions 1 Manual Loads 0 Difficulty Rogue Special Mode None Game No. 194 Rogue 194 Adventurer 0 Explorer 0 Win Type - Total 15 Types 6/0/5/1/1/0/0/1/0/1 Lore% 78 Gallery% 73 Achievement% 74 Wizard Run 0 Options --------- Layout 0 ASCII 0 Keyboard 0 Movement Mouse Keybinds 0 Fullscreen 2 Font 24/Smallcaps Map View 76x50 Zoom Use 0% Tactical HUD 1 Map Filters NONE Filters NONE Steam 1 RUN: 72ac78e1-6bb9-4f1b-b79b-071fcc66e679